[Event "Romanian Superleague 2022"]
[Site "Oradea"]
[Date "2022.09.29"]
[Round "9.26"]
[White "Padurariu, Mihai-Edward"]
[Black "Secheres, Adrian-Simion"]
[Result "0-1"]
[ECO "D00"]
[WhiteElo "2263"]
[BlackElo "2375"]
[Annotator "TA"]
[PlyCount "94"]
[EventDate "2022.09.21"]
[EventType "team-tourn"]
[EventCountry "ROU"]
[SourceTitle "playchess.com"]
[Source "ChessBase"]
[SourceQuality "1"]
[TimeControl "40/5400+30:1800+30"]

{[%evp 9,94,-8,0,0,0,-33,-9,-29,-20,-33,-28,-29,-3,0,-11,-5,0,-18,0,-21,0,0,0,-36,-26,-45,0,-40,-42,-21,0,-73,0,-100,-35,-35,0,-81,-38,-90,-88,-135,-134,-157,-137,-135,-137,-182,-160,-197,-173,-201,-163,-160,-164,-162,-150,-222,-108,-99,0,-124,-92,-181,-178,-183,-186,-259,-240,-239,-257,-347,-356,-386,-387,-365,-343,-357,-373,-383,-357,-433,-431,-394,-353,-621,-604]} 1. d4 {[%emt 0:00:05]} Nf6 {[%emt 0:00:25]} 2. Bg5 {[%emt 0:00:25]} d5 {[%emt 0:00:38]} 3. e3 {[%emt 0:00:30]} c5 {[%emt 0:00:41]} 4. Bxf6 {[%emt 0:01:28]} gxf6 {[%emt 0:00:22]} 5. Bb5+ {[%emt 0:01:38]} Bd7 {[%emt 0:00:52]} 6. Bxd7+ {[%emt 0:00:26] D00: 1 d4 d5: Unusual lines.} Nxd7 {[%emt 0:00:28]} 7. Nf3 {[%emt 0:06:00] [#]} cxd4 $146 {[%emt 0:01:47]} (7... Qb6 $5 {[%cal Rb6b2]}) ({Predecessor:} 7... e6 8. O-O Bg7 9. Nc3 f5 10. Ne2 Rc8 11. c3 O-O 12. Nf4 cxd4 13. exd4 Kh8 {1-0 (36) Morozevich,A (2741)-Leko,P (2749) Monte Carlo 2007}) 8. exd4 {[%emt 0:00:36] The position is equal.} Qb6 {[%emt 0:00:51]} 9. Nc3 {[%emt 0:07:18]} e6 {[%emt 0:11:38]} 10. Rb1 {[%emt 0:06:07]} Bb4 {[%emt 0:01:52]} 11. O-O {[%emt 0:00:20]} Bxc3 {[%emt 0:04:49]} 12. bxc3 {[%emt 0:01:04]} Qc7 {[%emt 0:00:12]} 13. Qd3 {[%emt 0:10:35]} O-O {[%emt 0:04:48]} 14. Rfe1 {[%emt 0:04:01]} Kh8 {[%emt 0:02:02]} 15. Nd2 {[%emt 0:06:11]} Rac8 {[%emt 0:00:52]} 16. Re3 {[%emt 0:01:26][%cal Oc3c4]} Rg8 {[%emt 0:00:33]} 17. Qb5 {[%emt 0:07:24]} Qd6 {[%emt 0:07:45]} 18. Qb4 {[%emt 0:12:38]} (18. Qxb7 $2 Rb8 19. Qxa7 Ra8 $19) 18... Qxb4 {[%emt 0:04:07]} 19. Rxb4 {[%emt 0:00:11]} Rc7 {[%emt 0:05:15]} 20. Kf1 {[%emt 0:05:08]} (20. c4 $11 {remains equal.}) 20... Rgc8 {[%emt 0:01:49]} ({Better is} 20... Nb6 $17) 21. Ke2 {[%emt 0:01:37]} (21. c4 $1 $11) 21... Nb6 {[%emt 0:02:37]} (21... Nb8 $17) 22. a4 $1 $15 {[%emt 0:01:30]} Nd7 {[%emt 0:01:55]} (22... Rxc3 23. a5 $16) 23. Rb3 {[%emt 0:14:05]} (23. c4 $11) 23... b6 {[%emt 0:01:20]} 24. f4 {[%emt 0:01:57]} ({White should play} 24. a5 $15) 24... f5 $17 {[%emt 0:02:00]} 25. Ra3 {[%emt 0:00:45]} ({White should try} 25. a5) 25... Nf6 {[%emt 0:04:26]} 26. h3 {[%emt 0:00:45]} Ne8 {[%emt 0:02:53]} 27. g4 {[%emt 0:02:52]} Nd6 {[%emt 0:01:09][%cal Oh7h5]} 28. Rb3 {[%emt 0:00:54]} Rg8 {[%emt 0:04:19]} 29. g5 {[%emt 0:00:24]} Kg7 {[%emt 0:01:48]} 30. h4 {[%emt 0:00:45]} h5 {[%emt 0:01:18]} 31. Ra3 {[%emt 0:04:46]} Rgc8 {[%emt 0:00:49]} 32. Rb3 {[%emt 0:00:44]} Rc6 {[%emt 0:01:41]} 33. Kd3 {[%emt 0:01:13] [#]} (33. Nb1 $17) 33... Nc4 {[%emt 0:01:28]} (33... Rc4 $1 $19 {[%mdl 512]} 34. Ra3 b5) 34. Re1 {[%emt 0:00:12]} Nd6 {[%emt 0:02:18]} (34... R6c7 $17 35. Rh1 Nd6) 35. Ra1 {[%emt 0:01:15]} (35. Re3 $1 $11 {was the only way to keep the balance.}) 35... a6 {[%emt 0:02:29]} 36. Rab1 {[%emt 0:00:26]} (36. Nf3 $17) 36... b5 $36 {[%emt 0:00:27][%cal Bb6b5,Bb5b4,Bb4c3][%mdl 2080] Keeping White busy.} 37. Ra1 {[%emt 0:00:12]} Ne4 {[%emt 0:04:46]} 38. Nxe4 {[%emt 0:01:00]} (38. Nb1 {might work better.}) 38... fxe4+ $19 {[%emt 0:00:05][%mdl 4096] Endgame KRR-KRR} ({Don't blunder} 38... dxe4+ $2 39. Kd2 $19) 39. Kd2 {[%emt 0:00:03]} b4 {[%emt 0:00:40][%cal Rc6c3]} 40. Rab1 {[%emt 0:00:00]} Rxc3 {[%emt 0:00:00]} ({Worse is} 40... bxc3+ 41. Ke3 $11) 41. Rxc3 {[%emt 0:01:08]} bxc3+ {[%emt 0:01:56] KR-KR} (41... Rxc3 $2 {is the wrong capture.} 42. Rxb4 Rf3 43. f5 Rxf5 44. c4 $19) 42. Ke3 {[%emt 0:00:12]} Rc4 {[%emt 0:00:57]} 43. a5 {[%emt 0:02:32]} Ra4 {[%emt 0:01:13]} 44. Rb3 {[%emt 0:01:26]} Rxa5 {[%emt 0:00:33] ...Ra1 is the strong threat.} 45. Rxc3 {[%emt 0:00:01]} Ra1 {[%emt 0:00:46]} 46. Rc6 {[%emt 0:01:07]} Rh1 {[%emt 0:01:42]} 47. Rxa6 $2 {[%emt 0:03:55] [#]} (47. c4 Rh3+ 48. Ke2) 47... Rxh4 {[%emt 0:01:40] Weighted Error Value: White=0.40/Black=0.21 (precise)} 0-1

[Event "Romanian Superleague 2022"]
[Site "Oradea"]
[Date "2022.09.29"]
[Round "9.27"]
[White "Filip, Andrei"]
[Black "Voiteanu, Gabriel"]
[Result "1-0"]
[ECO "C42"]
[WhiteElo "2356"]
[BlackElo "2154"]
[Annotator "TA"]
[PlyCount "107"]
[EventDate "2022.09.21"]
[EventType "team-tourn"]
[EventCountry "ROU"]
[SourceTitle "playchess.com"]
[Source "ChessBase"]
[SourceQuality "1"]
[TimeControl "40/5400+30:1800+30"]

{[%evp 16,107,49,39,87,38,25,29,34,20,16,34,27,10,28,20,36,20,28,-110,47,14,21,0,5,-47,-57,-53,-15,-29,-33,-28,8,-40,58,62,66,48,58,33,210,214,225,208,320,188,195,198,297,277,272,264,319,207,292,268,247,258,231,247,242,248,247,241,342,340,382,373,367,379,362,367,339,335,393,388,324,248,359,351,537,533,704,557,542,542,2352,1888,29972,29972,29979,29975,29974,29974]} 1. e4 {[%emt 0:00:03]} e5 {[%emt 0:06:13]} 2. Nf3 {[%emt 0:00:10]} Nf6 {[%emt 0:00:21]} 3. Nxe5 {[%emt 0:00:06]} d6 {[%emt 0:00:04]} 4. Nf3 {[%emt 0:00:06]} Nxe4 {[%emt 0:00:04]} 5. d4 {[%emt 0:00:14]} d5 {[%emt 0:00:08]} 6. Bd3 {[%emt 0:00:04]} Be7 {[%emt 0:00:09]} 7. O-O {[%emt 0:00:08]} Nc6 {[%emt 0:00:06]} 8. Nbd2 $1 {[%emt 0:00:34][%mdl 4] is recently more successful than 8.c4.} Bf5 {[%emt 0:05:21]} 9. Re1 {[%emt 0:00:22][%cal Rd2e4]} Nd6 {[%emt 0:01:12] C42: Petroff Defence: 3 Nxe5 and unusual White 3rd moves.} (9... Nxd2 $14 {deserves consideration.} 10. Qxd2 (10. Bxf5 Nxf3+ 11. gxf3 O-O $11) 10... Bg6) 10. Nb3 {[%emt 0:01:07]} (10. Bxf5 Nxf5 11. c3 Qd7 $11) (10. Nf1 $1 $16) 10... Bxd3 $14 {[%emt 0:05:04]} 11. Qxd3 {[%emt 0:00:06]} O-O {[%emt 0:00:54] White has an edge.} 12. c3 {[%emt 0:02:12]} Ne4 {[%emt 0:10:22]} 13. Bf4 {[%emt 0:05:34]} Bd6 {[%emt 0:16:09]} 14. Bxd6 {[%emt 0:00:42]} (14. Ne5 {looks sharper.} a5 15. f3 Ng5 16. Nxc6 bxc6 17. Bxg5 Qxg5 18. Qe2) 14... Qxd6 {[%emt 0:03:02]} 15. Re2 {[%emt 0:04:42] [#]} Ne7 $146 {[%emt 0:06:01]} ({Predecessor:} 15... Nd8 16. Nc5 Nf6 17. Qc2 b6 18. Nd3 Ne6 19. Rae1 Rfe8 20. Qa4 c5 21. dxc5 bxc5 {½-½ (30) Noble,M (2502)-Romm,M (2458) ICCF email 2013}) 16. Rae1 {[%emt 0:04:31][%cal Ob3c5] Strongly threatening Nc5!} Ng6 {[%emt 0:02:40] aiming for ...Nf4.} 17. g3 {[%emt 0:00:23] [#] Inhibits Nf4.} (17. Re3 $11 {keeps the balance.}) 17... f5 $2 {[%emt 0:02:42]} (17... Nf4 $1 $17 {[%cal Rf4d3][%mdl 512]} 18. gxf4 Qg6+ 19. Ng5 Nxg5 20. Qxg6 Nf3+ 21. Kh1 fxg6) 18. Nfd2 {[%emt 0:03:59]} (18. Ne5 $5) 18... Rf6 {[%emt 0:05:08]} 19. Kg2 {[%emt 0:12:12]} h5 {[%emt 0:28:00][%cal Bh7h5,Bh5h4][%mdl 32]} 20. Kg1 {[%emt 0:22:05]} (20. c4 $11) 20... h4 $15 {[%emt 0:00:54]} 21. Qf3 {[%emt 0:06:01]} Kf7 {[%emt 0:02:28]} 22. Nc5 {[%emt 0:03:41][%cal Bb3c5,Bc5d3,Bd3e5][%mdl 32]} (22. Nxe4 fxe4 23. Qe3 Rf8 $17) 22... b6 {[%emt 0:01:24]} 23. Nd3 {[%emt 0:00:37]} (23. Ndxe4 $2 fxe4 24. Nxe4 Rxf3 $19) 23... Rh8 {[%emt 0:00:17]} 24. Qg2 {[%emt 0:00:48]} (24. g4 $11 Nxd2 25. Rxd2 fxg4 26. Qxg4) 24... Nxd2 {[%emt 0:02:32]} (24... hxg3 $15 25. hxg3 Kg8) 25. Ne5+ $14 {[%emt 0:01:28]} Kg8 $1 {[%emt 0:00:46] ...Ne4 is the strong threat.} (25... Nxe5 $2 26. dxe5 h3 27. Qh1 $18 (27. exd6 hxg2 28. Rxd2 Rxd6 $14)) 26. Rxd2 {[%emt 0:00:18]} hxg3 {[%emt 0:00:43]} 27. hxg3 {[%emt 0:01:19] Black must now prevent Nxg6.} (27. Qxg3 f4 28. Qg2 Rh5 $11) (27. fxg3 $5 {[%cal Re5g6]} Nf8 28. Rf2 $14) 27... Qe6 $2 {[%emt 0:00:38] [#] This move loses the game for Black.} (27... Rh6 $14) 28. Rde2 $1 $18 {[%emt 0:00:36][%cal Bd2e2,Be2e5,Be5d5][%mdl 32] And now Nxg6 would win.} Nxe5 {[%emt 0:00:32]} 29. Rxe5 {[%emt 0:00:13]} Qf7 {[%emt 0:00:30]} (29... Qc6 $142 30. Rxd5 (30. Qxd5+ Qxd5 31. Rxd5 Rf7 $18) 30... Kf7) 30. Qxd5 {[%emt 0:04:16]} ({Don't play} 30. Re8+ Kh7 31. R8e7 Qh5 32. Qxd5 Kg6 $18) (30. Re7 $142 Qh5 31. Qxd5+ Kh7 32. Rxc7) 30... Qxd5 {[%emt 0:00:15]} 31. Rxd5 {[%emt 0:00:01][%mdl 4096] Endgame KRR-KRR} Rh5 {[%emt 0:00:11]} (31... Rf7 $142 32. Re6 Kh7) 32. Re7 {[%emt 0:00:52]} c6 {[%emt 0:00:30]} 33. Rde5 {[%emt 0:01:27]} a5 {[%emt 0:00:54]} 34. R5e6 {[%emt 0:01:42] Hoping for Rxf6.} Rhh6 {[%emt 0:00:12]} (34... f4 $142 35. Rxf6 gxf6) 35. Rxf6 {[%emt 0:00:09]} Rxf6 {[%emt 0:00:01] KR-KR} 36. Rb7 {[%emt 0:00:10]} b5 {[%emt 0:00:05]} 37. d5 {[%emt 0:00:07]} a4 {[%emt 0:01:03]} 38. a3 {[%emt 0:01:36]} cxd5 {[%emt 0:00:42]} 39. Rxb5 {[%emt 0:00:02]} d4 {[%emt 0:01:10]} (39... Rd6 {was necessary.} 40. Kf1 g6) 40. cxd4 {[%emt 0:00:00]} Rd6 {[%emt 0:00:00]} 41. Rb4 {[%emt 0:02:03]} Ra6 {[%emt 0:00:19]} 42. Kf1 {[%emt 0:00:12]} Kf7 {[%emt 0:31:44]} 43. Ke2 {[%emt 0:00:06]} Ke6 {[%emt 0:00:00]} 44. Kd3 {[%emt 0:00:23]} g5 {[%emt 0:00:00]} 45. Rb5 {[%emt 0:00:51]} Ra8 {[%emt 0:00:00]} 46. Rb6+ {[%emt 0:00:13]} Kf7 {[%emt 0:00:00]} (46... Kd7 $142 47. Rb5 Ke6) 47. d5 {[%emt 0:00:48][%cal Bd4d5,Bd5d6][%mdl 32] Threatens to win with Kd4.} Rd8 {[%emt 0:00:00]} (47... Re8 {might work better.} 48. Rb4 Re5) 48. Kd4 {[%emt 0:01:34]} Re8 {[%emt 0:00:00]} 49. Re6 {[%emt 0:01:33] Against Re2. White threatens Rxe8 and mate.} Rb8 {[%emt 0:00:00]} 50. Re2 {[%emt 0:00:07]} Kf6 {[%emt 0:00:00]} 51. d6 {[%emt 0:00:51]} f4 {[%emt 0:00:00]} 52. gxf4 {[%emt 0:01:04] White mates.} gxf4 {[%emt 0:00:00]} 53. Kc5 {[%emt 0:01:47]} f3 {[%emt 0:00:00]} 54. Rd2 {[%emt 0:00:10] Weighted Error Value: White=0.22 (precise) /Black=0.52} 1-0

[Event "Romanian Superleague 2022"]
[Site "Oradea"]
[Date "2022.09.29"]
[Round "9.28"]
[White "Oprisor, Razvan-Gabriel"]
[Black "Nastore, Pavel-Alexandru"]
[Result "1/2-1/2"]
[ECO "A36"]
[WhiteElo "2175"]
[BlackElo "2279"]
[Annotator "TA"]
[PlyCount "37"]
[EventDate "2022.09.21"]
[EventType "team-tourn"]
[EventCountry "ROU"]
[SourceTitle "playchess.com"]
[Source "ChessBase"]
[SourceQuality "1"]
[TimeControl "40/5400+30:1800+30"]

{[%evp 18,24,-6,-14,-7,-12,0,-12,-3]} 1. e4 {[%emt 0:00:02]} c5 {[%emt 0:00:07]} 2. c4 {[%emt 0:00:30]} Nc6 {[%emt 0:00:30]} 3. Nc3 {[%emt 0:00:30]} g6 {[%emt 0:00:30]} 4. g3 {[%emt 0:00:30]} Bg7 {[%emt 0:00:30]} 5. Bg2 {[%emt 0:00:30]} d6 {[%emt 0:00:30]} 6. Nge2 {[%emt 0:00:30]} Nf6 {[%emt 0:00:30]} 7. d3 {[%emt 0:00:30]} O-O {[%emt 0:00:30]} 8. O-O {[%emt 0:00:30]} a6 {[%emt 0:00:30]} 9. h3 {[%emt 0:00:30]} Rb8 {[%emt 0:00:30]} 10. f4 {[%emt 0:00:30] The position is equal.} Nd7 {[%emt 0:00:30] A36: Symmetrical English vs ...g6: 4 Bg2 Bg7.} 11. a4 {[%emt 0:00:30]} Nd4 {[%emt 0:00:30]} 12. Be3 {[%emt 0:00:30]} e6 {[%emt 0:00:30] [#] A rather calm draw.  Weighted Error Value: White=0.05 (flawless) /Black=0.05 (flawless)} {Predecessor:} 13. Rb1 $146 b6 14. b4 Bb7 15. Qd2 f5 16. Kh2 Kh8 17. Ng1 cxb4 18. Rxb4 a5 19. Rbb1 {0-1 (41) Quesada Perez,L (2513)-Albornoz Cabrera,C (2577) Santa Clara 2019} 1/2-1/2

[Event "Romanian Superleague 2022"]
[Site "Oradea"]
[Date "2022.09.29"]
[Round "9.30"]
[White "Gulie, Cosmin"]
[Black "Carmaciu, Lucian-Catalin"]
[Result "0-1"]
[ECO "B22"]
[WhiteElo "1973"]
[BlackElo "2376"]
[Annotator "TA"]
[PlyCount "58"]
[EventDate "2022.09.21"]
[EventType "team-tourn"]
[EventCountry "ROU"]
[SourceTitle "playchess.com"]
[Source "ChessBase"]
[SourceQuality "1"]
[TimeControl "40/5400+30:1800+30"]

{[%evp 9,58,30,37,-8,-9,0,-10,-11,-26,-14,-8,-9,12,-22,-9,-16,-17,-14,-19,-16,0,0,0,-44,-33,-55,-56,-89,-79,-80,-72,-78,-75,-70,-77,-198,-70,-82,-81,-90,-88,-97,-101,-114,-105,-102,-15,-16,-21,-47,-64]} 1. e4 {[%emt 0:00:12]} c5 {[%emt 0:00:26]} 2. c3 {[%emt 0:00:05]} d5 {[%emt 0:00:27]} 3. exd5 {[%emt 0:00:06]} Qxd5 {[%emt 0:00:05]} 4. d4 {[%emt 0:00:06]} Nc6 {[%emt 0:00:21]} 5. Nf3 {[%emt 0:00:07]} Bf5 {[%emt 0:00:34]} 6. Na3 {[%emt 0:00:32] B22: Sicilian: 2 c3.} (6. Be3 {is interesting.} cxd4 7. Nxd4 Nf6 8. Nxf5 Qxf5 9. Qb3) 6... cxd4 {[%emt 0:00:39]} 7. Nxd4 {[%emt 0:02:03]} Nxd4 {[%emt 0:02:32]} 8. Qxd4 {[%emt 0:00:17] The position is equal.} Qxd4 {[%emt 0:00:30]} 9. cxd4 {[%emt 0:00:05] [#]} e6 $146 {[%emt 0:02:17]} ({Predecessor:} 9... a6 10. Be2 Nf6 11. Bf3 Be4 12. Bxe4 Nxe4 13. Bf4 e6 14. Nc4 Rd8 15. Rd1 Nd6 {0-1 (73) Asadli,V (2578)-Erigaisi,A (2626) Plovdiv 2021}) 10. Bb5+ {[%emt 0:01:19]} Kd8 {[%emt 0:00:06]} 11. Bf4 {[%emt 0:01:04][%cal Bc1f4,Bf4d2,Bd2a5][%mdl 32]} a6 {[%emt 0:01:06]} 12. Be2 {[%emt 0:00:09]} Bb4+ {[%emt 0:13:28]} 13. Bd2 {[%emt 0:00:07]} Bxa3 {[%emt 0:00:53]} 14. bxa3 {[%emt 0:00:37]} Be4 {[%emt 0:01:14]} 15. O-O {[%emt 0:00:19]} Ne7 {[%emt 0:00:30]} 16. Ba5+ {[%emt 0:00:36] This bishop pair is nice.} Kd7 {[%emt 0:00:06]} 17. Rac1 {[%emt 0:00:18]} Rac8 {[%emt 0:00:54] Against Rc7+} 18. Bc4 {[%emt 0:02:04]} Rc6 {[%emt 0:07:22] aiming for ...Rhc8. Black is more active.} 19. f3 {[%emt 0:00:46]} Bd5 {[%emt 0:00:19]} 20. Bxd5 {[%emt 0:00:31]} Nxd5 {[%emt 0:00:07]} 21. Rxc6 {[%emt 0:00:05]} Kxc6 $17 {[%emt 0:00:07][%mdl 4096] Endgame KRB-KRN} ({Much worse is} 21... bxc6 $6 22. Rb1 $11) 22. Rc1+ {[%emt 0:00:10] [#]} (22. a4 $17) 22... Kd7 {[%emt 0:00:13]} (22... Kb5 $1 $19 {[%cal Rb5a5]} 23. Bb4 b6) 23. Kf2 {[%emt 0:00:11]} Rc8 {[%emt 0:00:31]} 24. Rxc8 {[%emt 0:00:19]} Kxc8 {[%emt 0:00:03] KB-KN} 25. g3 {[%emt 0:00:07]} Kd7 {[%emt 0:00:10]} 26. Ke2 {[%emt 0:00:27]} Kc6 {[%emt 0:00:09] [#] Threatens to win with ...Kb5.} 27. Kd3 {[%emt 0:00:09]} f5 {[%emt 0:12:26]} (27... Kb5 $17 28. Bd2 Ka4) 28. a4 $1 $11 {[%emt 0:00:24]} Ne7 {[%emt 0:04:39]} 29. Kc4 {[%emt 0:00:22]} Nc8 {[%emt 0:01:39] Weighted Error Value: White=0.16 (very precise) /Black=0.15 (very precise)} 0-1